[Event "Titled Tuesday Blitz June 27 Late 2023"]
[White "campochess"]
[Black "Szyszylo, Rafal"]
[BlackFideId "1109626"]
[WhiteElo "2166"]
[BlackElo "2401"]
[Result "0-1"]
[Round "5"]
[TimeControl "180+2"]
[Date "2023.06.27"]
[WhiteClock "0:00:00"]
[BlackClock "0:00:28"]
[Board "145"]

1. Nf3 {[%clk 0:02:54]}  d6 {[%clk 0:02:58]} 2. d4 {[%clk 0:02:54]}  g6 {[%clk 0:02:58]} 3. g3 {[%clk 0:02:53]}  Nf6 {[%clk 0:02:59]} 4. Bg2 {[%clk 0:02:53]}  Bg7 {[%clk 0:02:59]} 5. O-O {[%clk 0:02:53]}  O-O {[%clk 0:03:00]} 6. c4 {[%clk 0:02:53]}  c6 {[%clk 0:02:59]} 7. Nc3 {[%clk 0:02:52]}  Qb6 {[%clk 0:02:59]} 8. a4 {[%clk 0:02:48]}  a5 {[%clk 0:02:56]} 9. Ra3 {[%clk 0:02:47]}  Na6 {[%clk 0:02:55]} 10. Rb3 {[%clk 0:02:47]}  Qc7 {[%clk 0:02:54]} 11. e4 {[%clk 0:02:45]}  Bg4 {[%clk 0:02:52]} 12. h3 {[%clk 0:02:44]}  Bxf3 {[%clk 0:02:52]} 13. Qxf3 {[%clk 0:02:44]}  Nb4 {[%clk 0:02:51]} 14. Ne2 {[%clk 0:02:35]}  e5 {[%clk 0:02:45]} 15. dxe5 {[%clk 0:02:31]}  dxe5 {[%clk 0:02:45]} 16. Bg5 {[%clk 0:02:28]}  Nd7 {[%clk 0:02:32]} 17. Qe3 {[%clk 0:02:07]}  Qd6 {[%clk 0:02:23]} 18. Qd2 {[%clk 0:01:54]}  Qxd2 {[%clk 0:02:20]} 19. Bxd2 {[%clk 0:01:53]}  Nc5 {[%clk 0:02:20]} 20. Re3 {[%clk 0:01:48]}  Nxa4 {[%clk 0:02:10]} 21. Bxb4 {[%clk 0:01:43]}  axb4 {[%clk 0:02:09]} 22. Rb3 {[%clk 0:01:43]}  c5 {[%clk 0:02:07]} 23. Rd1 {[%clk 0:01:40]}  Nb6 {[%clk 0:02:01]} 24. Rc1 {[%clk 0:01:19]}  Rfd8 {[%clk 0:01:59]} 25. Kh2 {[%clk 0:01:00]}  Rd2 {[%clk 0:01:50]} 26. Bf3 {[%clk 0:01:00]}  Ra2 {[%clk 0:01:46]} 27. Rb1 {[%clk 0:00:58]}  Na4 {[%clk 0:01:44]} 28. Nc1 {[%clk 0:00:51]}  Raxb2 {[%clk 0:01:39]} 29. R1xb2 {[%clk 0:00:51]}  Rxb2 {[%clk 0:01:39]} 30. Rxb2 {[%clk 0:00:50]}  Nxb2 {[%clk 0:01:40]} 31. Nb3 {[%clk 0:00:50]}  b6 {[%clk 0:01:39]} 32. Be2 {[%clk 0:00:49]}  Bh6 {[%clk 0:01:37]} 33. Kg2 {[%clk 0:00:47]}  Kf8 {[%clk 0:01:31]} 34. Kf3 {[%clk 0:00:45]}  Ke7 {[%clk 0:01:31]} 35. Kg4 {[%clk 0:00:45]}  Ke6 {[%clk 0:01:31]} 36. f4 {[%clk 0:00:45]}  f5+ {[%clk 0:01:30]} 37. Kf3 {[%clk 0:00:42]}  Na4 {[%clk 0:01:26]} 38. exf5+ {[%clk 0:00:37]}  gxf5 {[%clk 0:01:26]} 39. fxe5 {[%clk 0:00:37]}  Kxe5 {[%clk 0:01:24]} 40. Bd3 {[%clk 0:00:34]}  Nc3 {[%clk 0:01:21]} 41. g4 {[%clk 0:00:34]}  fxg4+ {[%clk 0:01:08]} 42. Kxg4 {[%clk 0:00:33]}  Na4 {[%clk 0:01:00]} 43. Bxh7 {[%clk 0:00:31]}  Nb2 {[%clk 0:01:01]} 44. Bg8 {[%clk 0:00:30]}  Ke4 {[%clk 0:00:56]} 45. Kh5 {[%clk 0:00:28]}  Be3 {[%clk 0:00:56]} 46. h4 {[%clk 0:00:26]}  Kd3 {[%clk 0:00:56]} 47. Kg6 {[%clk 0:00:25]}  Nxc4 {[%clk 0:00:57]} 48. h5 {[%clk 0:00:23]}  Ne5+ {[%clk 0:00:49]} 49. Kf5 {[%clk 0:00:23]}  Nc6 {[%clk 0:00:45]} 50. Na1 {[%clk 0:00:19]}  Kc3 {[%clk 0:00:40]} 51. Ke4 {[%clk 0:00:18]}  Bc1 {[%clk 0:00:39]} 52. Kd5 {[%clk 0:00:14]}  Na5 {[%clk 0:00:39]} 53. Kd6 {[%clk 0:00:13]}  Bb2 {[%clk 0:00:36]} 54. Nb3 {[%clk 0:00:12]}  Nxb3 {[%clk 0:00:36]} 55. h6 {[%clk 0:00:12]}  Nd4 {[%clk 0:00:32]} 56. h7 {[%clk 0:00:11]}  Nf5+ {[%clk 0:00:32]} 57. Kc6 {[%clk 0:00:11]}  Kd3 {[%clk 0:00:30]} 58. Kxb6 {[%clk 0:00:10]}  c4 {[%clk 0:00:27]} 59. Kb5 {[%clk 0:00:10]}  c3 {[%clk 0:00:28]} 60. Kxb4 {[%clk 0:00:00]}  c2 {[%clk 0:00:28]} 0-1


[Site "https://www.chess.com"]

[Event "Titled Tuesday Blitz June 27 Late 2023"]
[White "Bueno, Alfeu Junior Varela"]
[Black "Petersson, Kjell"]
[WhiteFideId "2108879"]
[BlackFideId "1705148"]
[WhiteElo "2395"]
[BlackElo "2134"]
[Result "1/2-1/2"]
[Round "5"]
[TimeControl "180+2"]
[Date "2023.06.27"]
[WhiteClock "0:00:09"]
[BlackClock "0:00:28"]
[Board "146"]

1. e4 {[%clk 0:03:00]}  c5 {[%clk 0:02:59]} 2. Nc3 {[%clk 0:03:01]}  g6 {[%clk 0:02:58]} 3. f4 {[%clk 0:03:01]}  Bg7 {[%clk 0:02:56]} 4. Nf3 {[%clk 0:03:02]}  Nc6 {[%clk 0:02:56]} 5. Bb5 {[%clk 0:03:02]}  a6 {[%clk 0:02:49]} 6. Bxc6 {[%clk 0:03:02]}  bxc6 {[%clk 0:02:49]} 7. d3 {[%clk 0:03:02]}  d6 {[%clk 0:02:48]} 8. O-O {[%clk 0:03:02]}  e6 {[%clk 0:02:47]} 9. e5 {[%clk 0:02:57]}  d5 {[%clk 0:02:43]} 10. Na4 {[%clk 0:02:47]}  Qa5 {[%clk 0:02:41]} 11. c4 {[%clk 0:02:47]}  Ne7 {[%clk 0:02:36]} 12. b3 {[%clk 0:02:47]}  Nf5 {[%clk 0:02:28]} 13. Ba3 {[%clk 0:02:47]}  Ne3 {[%clk 0:02:28]} 14. Qe1 {[%clk 0:02:44]}  Qxe1 {[%clk 0:02:19]} 15. Rfxe1 {[%clk 0:02:44]}  Nc2 {[%clk 0:02:18]} 16. Bxc5 {[%clk 0:02:44]}  Kd8 {[%clk 0:01:45]} 17. Nb6 {[%clk 0:02:31]}  Rb8 {[%clk 0:01:43]} 18. Nd4 {[%clk 0:02:30]}  Nxe1 {[%clk 0:01:22]} 19. Rxe1 {[%clk 0:01:47]}  Bd7 {[%clk 0:01:06]} 20. a4 {[%clk 0:01:32]}  Bf8 {[%clk 0:01:06]} 21. Bxf8 {[%clk 0:01:30]}  Rxf8 {[%clk 0:01:07]} 22. c5 {[%clk 0:01:27]}  Kc7 {[%clk 0:01:03]} 23. a5 {[%clk 0:01:21]}  Rbe8 {[%clk 0:01:00]} 24. Re3 {[%clk 0:01:15]}  f6 {[%clk 0:01:00]} 25. g3 {[%clk 0:01:10]}  fxe5 {[%clk 0:00:59]} 26. Rxe5 {[%clk 0:01:08]}  Rg8 {[%clk 0:00:54]} 27. Nf3 {[%clk 0:01:07]}  h6 {[%clk 0:00:53]} 28. Kf2 {[%clk 0:01:05]}  Ref8 {[%clk 0:00:53]} 29. Nd4 {[%clk 0:00:42]}  g5 {[%clk 0:00:49]} 30. Kf3 {[%clk 0:00:28]}  gxf4 {[%clk 0:00:47]} 31. gxf4 {[%clk 0:00:29]}  Rf6 {[%clk 0:00:45]} 32. Ne2 {[%clk 0:00:21]}  Rgf8 {[%clk 0:00:41]} 33. Ke3 {[%clk 0:00:20]}  Rf5 {[%clk 0:00:41]} 34. Ng3 {[%clk 0:00:16]}  Rxe5+ {[%clk 0:00:40]} 35. fxe5 {[%clk 0:00:17]}  Rg8 {[%clk 0:00:39]} 36. Nh5 {[%clk 0:00:16]}  Rg5 {[%clk 0:00:37]} 37. Nf6 {[%clk 0:00:14]}  Rxe5+ {[%clk 0:00:37]} 38. Kd4 {[%clk 0:00:14]}  Re1 {[%clk 0:00:33]} 39. Nbxd7 {[%clk 0:00:12]}  Rf1 {[%clk 0:00:29]} 40. Ke5 {[%clk 0:00:08]}  Re1+ {[%clk 0:00:28]} 41. Kd4 {[%clk 0:00:09]}  Rf1 {[%clk 0:00:28]} 42. Ke5 {[%clk 0:00:09]}  Re1+ {[%clk 0:00:28]} 43. Kd4 {[%clk 0:00:09]} 1/2-1/2


[Site "https://www.chess.com"]

[Event "Titled Tuesday Blitz June 27 Late 2023"]
[White "Ricaurte Lopez, Juan Carlos"]
[Black "Romero Ruscalleda, Josep"]
[WhiteFideId "3600327"]
[BlackFideId "2231859"]
[WhiteElo "2118"]
[BlackElo "2387"]
[Result "0-1"]
[Round "5"]
[TimeControl "180+2"]
[Date "2023.06.27"]
[WhiteClock "0:00:00"]
[BlackClock "0:00:33"]
[Board "147"]

1. e4 {[%clk 0:02:58]}  g6 {[%clk 0:03:00]} 2. d4 {[%clk 0:02:57]}  Bg7 {[%clk 0:03:01]} 3. Nc3 {[%clk 0:02:56]}  d6 {[%clk 0:03:01]} 4. Be3 {[%clk 0:02:54]}  a6 {[%clk 0:03:01]} 5. Qd2 {[%clk 0:02:53]}  b5 {[%clk 0:03:01]} 6. f4 {[%clk 0:02:50]}  Bb7 {[%clk 0:03:00]} 7. Bd3 {[%clk 0:02:45]}  Nf6 {[%clk 0:02:59]} 8. a3 {[%clk 0:02:40]}  Ng4 {[%clk 0:02:58]} 9. Nf3 {[%clk 0:02:37]}  Nxe3 {[%clk 0:02:58]} 10. Qxe3 {[%clk 0:02:37]}  Nd7 {[%clk 0:02:58]} 11. e5 {[%clk 0:02:35]}  e6 {[%clk 0:02:55]} 12. O-O-O {[%clk 0:02:20]}  O-O {[%clk 0:02:52]} 13. h4 {[%clk 0:02:16]}  c5 {[%clk 0:02:48]} 14. dxc5 {[%clk 0:01:59]}  Bxf3 {[%clk 0:02:43]} 15. Qxf3 {[%clk 0:01:54]}  dxe5 {[%clk 0:02:43]} 16. Be4 {[%clk 0:01:52]}  Rc8 {[%clk 0:02:29]} 17. c6 {[%clk 0:01:50]}  exf4 {[%clk 0:02:28]} 18. Rxd7 {[%clk 0:01:48]}  Qa5 {[%clk 0:02:26]} 19. h5 {[%clk 0:01:42]}  b4 {[%clk 0:02:26]} 20. Nb1 {[%clk 0:01:33]}  Qe5 {[%clk 0:02:14]} 21. c3 {[%clk 0:01:26]}  bxc3 {[%clk 0:02:07]} 22. Nxc3 {[%clk 0:01:24]}  Rfd8 {[%clk 0:01:49]} 23. hxg6 {[%clk 0:01:19]}  hxg6 {[%clk 0:01:49]} 24. Rhd1 {[%clk 0:01:16]}  Re8 {[%clk 0:01:43]} 25. Qd3 {[%clk 0:01:05]}  f5 {[%clk 0:01:32]} 26. Bf3 {[%clk 0:01:03]}  Bf6 {[%clk 0:01:21]} 27. Qxa6 {[%clk 0:00:55]}  g5 {[%clk 0:01:16]} 28. Qb7 {[%clk 0:00:40]}  Qe3+ {[%clk 0:01:09]} 29. Kc2 {[%clk 0:00:38]}  g4 {[%clk 0:01:07]} 30. Rf7 {[%clk 0:00:17]}  Qe5 {[%clk 0:00:54]} 31. Be2 {[%clk 0:00:14]}  Rb8 {[%clk 0:00:47]} 32. Bc4 {[%clk 0:00:05]}  Rxb7 {[%clk 0:00:43]} 33. Rxb7 {[%clk 0:00:05]}  Rc8 {[%clk 0:00:39]} 34. Rdd7 {[%clk 0:00:00]}  Rxc6 {[%clk 0:00:33]} 0-1


[Site "https://www.chess.com"]

[Event "Titled Tuesday Blitz June 27 Late 2023"]
[White "Inepton_Fermion"]
[Black "Dmitriev, Sergey"]
[BlackFideId "14101785"]
[WhiteElo "2369"]
[BlackElo "1949"]
[Result "1-0"]
[Round "5"]
[TimeControl "180+2"]
[Date "2023.06.27"]
[WhiteClock "0:00:10"]
[BlackClock "0:00:14"]
[Board "150"]

1. d4 {[%clk 0:02:52]}  d6 {[%clk 0:02:58]} 2. Nc3 {[%clk 0:02:51]}  g6 {[%clk 0:02:58]} 3. e4 {[%clk 0:02:52]}  Bg7 {[%clk 0:02:58]} 4. f3 {[%clk 0:02:50]}  Nf6 {[%clk 0:02:59]} 5. Be3 {[%clk 0:02:49]}  O-O {[%clk 0:02:59]} 6. Qd2 {[%clk 0:02:45]}  Nc6 {[%clk 0:02:58]} 7. O-O-O {[%clk 0:02:43]}  e5 {[%clk 0:02:55]} 8. Nge2 {[%clk 0:02:38]}  a6 {[%clk 0:02:46]} 9. d5 {[%clk 0:02:22]}  Ne7 {[%clk 0:02:43]} 10. Bh6 {[%clk 0:02:20]}  Ne8 {[%clk 0:02:43]} 11. h4 {[%clk 0:02:11]}  f5 {[%clk 0:02:40]} 12. Bxg7 {[%clk 0:01:37]}  Nxg7 {[%clk 0:02:39]} 13. f4 {[%clk 0:01:33]}  exf4 {[%clk 0:02:32]} 14. Nxf4 {[%clk 0:01:32]}  fxe4 {[%clk 0:02:31]} 15. Nxe4 {[%clk 0:01:31]}  Nef5 {[%clk 0:02:19]} 16. g4 {[%clk 0:01:19]}  Nxh4 {[%clk 0:02:11]} 17. g5 {[%clk 0:01:13]}  Nf3 {[%clk 0:01:58]} 18. Qe3 {[%clk 0:01:11]}  Nxg5 {[%clk 0:01:56]} 19. Nxg6 {[%clk 0:01:04]}  hxg6 {[%clk 0:01:51]} 20. Nxg5 {[%clk 0:00:59]}  Bg4 {[%clk 0:01:29]} 21. Ne6 {[%clk 0:00:38]}  Qf6 {[%clk 0:01:07]} 22. Qh6 {[%clk 0:00:16]}  Bh5 {[%clk 0:01:05]} 23. Nxf8 {[%clk 0:00:11]}  Rxf8 {[%clk 0:00:59]} 24. Bd3 {[%clk 0:00:04]}  Qf4+ {[%clk 0:00:56]} 25. Qxf4 {[%clk 0:00:04]}  Rxf4 {[%clk 0:00:55]} 26. Rdf1 {[%clk 0:00:05]}  Rf7 {[%clk 0:00:49]} 27. Rxf7 {[%clk 0:00:04]}  Kxf7 {[%clk 0:00:49]} 28. Rf1+ {[%clk 0:00:05]}  Kg8 {[%clk 0:00:47]} 29. Re1 {[%clk 0:00:03]}  Kf8 {[%clk 0:00:45]} 30. Be2 {[%clk 0:00:02]}  Kf7 {[%clk 0:00:42]} 31. Bxh5 {[%clk 0:00:02]}  Nxh5 {[%clk 0:00:42]} 32. c4 {[%clk 0:00:02]}  Nf6 {[%clk 0:00:41]} 33. Kd2 {[%clk 0:00:02]}  Kg7 {[%clk 0:00:39]} 34. Ke3 {[%clk 0:00:03]}  Ng4+ {[%clk 0:00:38]} 35. Kd4 {[%clk 0:00:02]}  Ne5 {[%clk 0:00:39]} 36. Rf1 {[%clk 0:00:03]}  b6 {[%clk 0:00:36]} 37. b4 {[%clk 0:00:02]}  a5 {[%clk 0:00:35]} 38. a3 {[%clk 0:00:03]}  axb4 {[%clk 0:00:34]} 39. axb4 {[%clk 0:00:04]}  g5 {[%clk 0:00:33]} 40. c5 {[%clk 0:00:04]}  Kg6 {[%clk 0:00:31]} 41. cxb6 {[%clk 0:00:04]}  cxb6 {[%clk 0:00:30]} 42. Rc1 {[%clk 0:00:04]}  g4 {[%clk 0:00:26]} 43. Rc6 {[%clk 0:00:04]}  Kf5 {[%clk 0:00:17]} 44. Rxd6 {[%clk 0:00:03]}  g3 {[%clk 0:00:17]} 45. Rd8 {[%clk 0:00:04]}  g2 {[%clk 0:00:16]} 46. Rf8+ {[%clk 0:00:04]}  Kg4 {[%clk 0:00:16]} 47. Rg8+ {[%clk 0:00:04]}  Kf3 {[%clk 0:00:15]} 48. Kxe5 {[%clk 0:00:04]}  Kf2 {[%clk 0:00:14]} 49. Rxg2+ {[%clk 0:00:04]}  Kxg2 {[%clk 0:00:14]} 50. d6 {[%clk 0:00:05]}  Kf3 {[%clk 0:00:14]} 51. d7 {[%clk 0:00:06]}  Ke3 {[%clk 0:00:14]} 52. d8=Q {[%clk 0:00:07]}  Ke2 {[%clk 0:00:14]} 53. Qxb6 {[%clk 0:00:07]}  Ke1 {[%clk 0:00:13]} 54. Qe3+ {[%clk 0:00:07]}  Kd1 {[%clk 0:00:13]} 55. Qf2 {[%clk 0:00:07]}  Kc1 {[%clk 0:00:13]} 56. Kd4 {[%clk 0:00:08]}  Kb1 {[%clk 0:00:13]} 57. Kc3 {[%clk 0:00:09]}  Ka1 {[%clk 0:00:14]} 58. Qb2# {[%clk 0:00:10]} 1-0


[Site "https://www.chess.com"]

[Event "Titled Tuesday Blitz June 27 Late 2023"]
[White "NtcPou"]
[Black "Ward, Ieuan C"]
[BlackFideId "406627"]
[WhiteElo "1974"]
[BlackElo "2274"]
[Result "0-1"]
[Round "5"]
[TimeControl "180+2"]
[Date "2023.06.27"]
[WhiteClock "0:00:13"]
[BlackClock "0:00:33"]
[Board "156"]

1. e4 {[%clk 0:02:49]}  e5 {[%clk 0:02:57]} 2. Nf3 {[%clk 0:02:48]}  Nc6 {[%clk 0:02:58]} 3. Bc4 {[%clk 0:02:48]}  Nf6 {[%clk 0:02:57]} 4. d3 {[%clk 0:02:48]}  Bc5 {[%clk 0:02:57]} 5. O-O {[%clk 0:02:48]}  O-O {[%clk 0:02:57]} 6. c3 {[%clk 0:02:47]}  d6 {[%clk 0:02:56]} 7. Re1 {[%clk 0:02:43]}  a6 {[%clk 0:02:56]} 8. Bb3 {[%clk 0:02:43]}  Ba7 {[%clk 0:02:54]} 9. Nbd2 {[%clk 0:02:41]}  Be6 {[%clk 0:02:51]} 10. Bc2 {[%clk 0:02:40]}  Re8 {[%clk 0:02:50]} 11. Nf1 {[%clk 0:02:39]}  h6 {[%clk 0:02:50]} 12. h3 {[%clk 0:02:35]}  Ne7 {[%clk 0:02:50]} 13. d4 {[%clk 0:02:31]}  Ng6 {[%clk 0:02:49]} 14. Ng3 {[%clk 0:02:28]}  b5 {[%clk 0:02:32]} 15. a4 {[%clk 0:02:25]}  bxa4 {[%clk 0:02:27]} 16. Bxa4 {[%clk 0:02:21]}  Bd7 {[%clk 0:02:26]} 17. Bc2 {[%clk 0:02:21]}  Qc8 {[%clk 0:02:21]} 18. Be3 {[%clk 0:02:18]}  Bb6 {[%clk 0:02:19]} 19. Qd2 {[%clk 0:02:16]}  exd4 {[%clk 0:02:14]} 20. Bxd4 {[%clk 0:02:11]}  Bxd4 {[%clk 0:02:13]} 21. cxd4 {[%clk 0:02:10]}  c5 {[%clk 0:02:12]} 22. e5 {[%clk 0:02:07]}  Nd5 {[%clk 0:02:02]} 23. exd6 {[%clk 0:01:58]}  cxd4 {[%clk 0:01:55]} 24. Bxg6 {[%clk 0:01:55]}  fxg6 {[%clk 0:01:54]} 25. Qxd4 {[%clk 0:01:55]}  Qb7 {[%clk 0:01:45]} 26. Ne5 {[%clk 0:01:52]}  Re6 {[%clk 0:01:37]} 27. Nxd7 {[%clk 0:01:50]}  Rxe1+ {[%clk 0:01:36]} 28. Rxe1 {[%clk 0:01:50]}  Rd8 {[%clk 0:01:32]} 29. Nc5 {[%clk 0:01:48]}  Qc6 {[%clk 0:01:32]} 30. Nxa6 {[%clk 0:01:48]}  Rxd6 {[%clk 0:01:31]} 31. Nb8 {[%clk 0:01:32]}  Qb5 {[%clk 0:01:25]} 32. Ne4 {[%clk 0:01:07]}  Re6 {[%clk 0:01:16]} 33. Qa7 {[%clk 0:00:50]}  Qb4 {[%clk 0:00:54]} 34. Re2 {[%clk 0:00:31]}  Rxe4 {[%clk 0:00:52]} 35. Rxe4 {[%clk 0:00:29]}  Qxe4 {[%clk 0:00:53]} 36. Qd7 {[%clk 0:00:24]}  Nf4 {[%clk 0:00:41]} 37. Qg4 {[%clk 0:00:15]}  Qe1+ {[%clk 0:00:38]} 38. Kh2 {[%clk 0:00:15]}  Qxf2 {[%clk 0:00:38]} 39. Nd7 {[%clk 0:00:14]}  Ne2 {[%clk 0:00:33]} 40. Ne5 {[%clk 0:00:13]}  Qg1# {[%clk 0:00:33]} 0-1


[Site "https://www.chess.com"]

[Event "Titled Tuesday Blitz June 27 Late 2023"]
[White "Sai Han Thiha"]
[Black "Cardenas Carbajal, Nilson"]
[WhiteFideId "13012290"]
[BlackFideId "8401128"]
[WhiteElo "2484"]
[BlackElo "2114"]
[Result "1-0"]
[Round "5"]
[TimeControl "180+2"]
[Date "2023.06.27"]
[WhiteClock "0:00:20"]
[BlackClock "0:00:00"]
[Board "158"]

1. d4 {[%clk 0:03:00]}  Nf6 {[%clk 0:02:58]} 2. c4 {[%clk 0:03:01]}  g6 {[%clk 0:02:56]} 3. Nc3 {[%clk 0:03:01]}  d5 {[%clk 0:02:55]} 4. Nf3 {[%clk 0:03:00]}  Bg7 {[%clk 0:02:55]} 5. Qb3 {[%clk 0:03:00]}  dxc4 {[%clk 0:02:53]} 6. Qxc4 {[%clk 0:03:01]}  a6 {[%clk 0:02:35]} 7. e4 {[%clk 0:02:37]}  b5 {[%clk 0:02:35]} 8. Qb3 {[%clk 0:02:36]}  O-O {[%clk 0:02:31]} 9. Be2 {[%clk 0:02:17]}  Bb7 {[%clk 0:02:30]} 10. e5 {[%clk 0:02:17]}  Nd5 {[%clk 0:02:29]} 11. Ne4 {[%clk 0:02:11]}  Nd7 {[%clk 0:02:23]} 12. O-O {[%clk 0:02:03]}  c5 {[%clk 0:02:23]} 13. Nxc5 {[%clk 0:01:46]}  Nxc5 {[%clk 0:02:22]} 14. dxc5 {[%clk 0:01:47]}  Qc7 {[%clk 0:02:21]} 15. e6 {[%clk 0:01:42]}  fxe6 {[%clk 0:02:12]} 16. a4 {[%clk 0:01:42]}  b4 {[%clk 0:01:51]} 17. Re1 {[%clk 0:01:38]}  Qxc5 {[%clk 0:01:48]} 18. Bg5 {[%clk 0:01:34]}  Rf5 {[%clk 0:01:45]} 19. Rac1 {[%clk 0:01:32]}  Qd6 {[%clk 0:01:39]} 20. Bd3 {[%clk 0:01:24]}  Rf7 {[%clk 0:01:18]} 21. Be4 {[%clk 0:01:16]}  Raf8 {[%clk 0:01:05]} 22. Rcd1 {[%clk 0:01:14]}  a5 {[%clk 0:01:00]} 23. Bh4 {[%clk 0:01:06]}  Qc5 {[%clk 0:00:50]} 24. Bg3 {[%clk 0:00:55]}  Bc6 {[%clk 0:00:40]} 25. Rd2 {[%clk 0:00:50]}  Qb6 {[%clk 0:00:19]} 26. Rc1 {[%clk 0:00:42]}  Bb7 {[%clk 0:00:18]} 27. Ng5 {[%clk 0:00:39]}  Rf6 {[%clk 0:00:13]} 28. Bf3 {[%clk 0:00:39]}  h6 {[%clk 0:00:12]} 29. Ne4 {[%clk 0:00:39]}  Rxf3 {[%clk 0:00:11]} 30. gxf3 {[%clk 0:00:38]}  g5 {[%clk 0:00:11]} 31. Nc5 {[%clk 0:00:30]}  Bc8 {[%clk 0:00:08]} 32. Re2 {[%clk 0:00:22]}  Nf4 {[%clk 0:00:07]} 33. Bxf4 {[%clk 0:00:22]}  Rxf4 {[%clk 0:00:07]} 34. Nxe6 {[%clk 0:00:22]}  Bxe6 {[%clk 0:00:06]} 35. Qxe6+ {[%clk 0:00:23]}  Qxe6 {[%clk 0:00:06]} 36. Rxe6 {[%clk 0:00:24]}  Bf6 {[%clk 0:00:06]} 37. Kg2 {[%clk 0:00:23]}  h5 {[%clk 0:00:05]} 38. Re4 {[%clk 0:00:20]}  Rf5 {[%clk 0:00:02]} 39. b3 {[%clk 0:00:20]}  g4 {[%clk 0:00:01]} 40. fxg4 {[%clk 0:00:20]}  hxg4 {[%clk 0:00:00]} 41. Rxg4+ {[%clk 0:00:20]} 1-0


[Site "https://www.chess.com"]

[Event "Titled Tuesday Blitz June 27 Late 2023"]
[White "Winkels, Marcel"]
[Black "nicolasulaneobelassi"]
[WhiteFideId "1003887"]
[WhiteElo "2084"]
[BlackElo "2424"]
[Result "0-1"]
[Round "5"]
[TimeControl "180+2"]
[Date "2023.06.27"]
[WhiteClock "0:00:00"]
[BlackClock "0:00:39"]
[Board "159"]

1. e4 {[%clk 0:03:00]}  e5 {[%clk 0:03:00]} 2. Nc3 {[%clk 0:02:59]}  Nf6 {[%clk 0:02:59]} 3. f4 {[%clk 0:02:59]}  d5 {[%clk 0:02:58]} 4. fxe5 {[%clk 0:02:55]}  Nxe4 {[%clk 0:02:57]} 5. Nf3 {[%clk 0:02:54]}  Nc6 {[%clk 0:02:49]} 6. d4 {[%clk 0:02:50]}  Nxc3 {[%clk 0:02:39]} 7. bxc3 {[%clk 0:02:49]}  f6 {[%clk 0:02:40]} 8. exf6 {[%clk 0:02:42]}  Qxf6 {[%clk 0:02:38]} 9. Bd3 {[%clk 0:02:41]}  Qe7+ {[%clk 0:02:20]} 10. Kf2 {[%clk 0:02:35]}  Be6 {[%clk 0:02:19]} 11. Re1 {[%clk 0:02:30]}  O-O-O {[%clk 0:02:19]} 12. Bg5 {[%clk 0:02:27]}  Qf7 {[%clk 0:02:16]} 13. Bxd8 {[%clk 0:02:25]}  Nxd8 {[%clk 0:02:16]} 14. Kg1 {[%clk 0:02:19]}  Bd6 {[%clk 0:02:13]} 15. Qe2 {[%clk 0:02:04]}  Qh5 {[%clk 0:02:12]} 16. h3 {[%clk 0:01:50]}  Rf8 {[%clk 0:02:09]} 17. Ne5 {[%clk 0:01:43]}  Qh4 {[%clk 0:02:00]} 18. Rf1 {[%clk 0:01:22]}  Re8 {[%clk 0:01:56]} 19. Rae1 {[%clk 0:01:17]}  Bd7 {[%clk 0:01:40]} 20. Qf2 {[%clk 0:01:05]}  Qxf2+ {[%clk 0:01:22]} 21. Rxf2 {[%clk 0:00:59]}  Nc6 {[%clk 0:01:21]} 22. Nf3 {[%clk 0:00:54]}  Rd8 {[%clk 0:01:13]} 23. Rfe2 {[%clk 0:00:51]}  Bg3 {[%clk 0:01:12]} 24. Rf1 {[%clk 0:00:50]}  g6 {[%clk 0:01:11]} 25. Ne5 {[%clk 0:00:49]}  Nxe5 {[%clk 0:01:09]} 26. dxe5 {[%clk 0:00:48]}  Be6 {[%clk 0:01:10]} 27. Rf3 {[%clk 0:00:42]}  Bh4 {[%clk 0:01:08]} 28. g3 {[%clk 0:00:35]}  Be7 {[%clk 0:01:07]} 29. Kg2 {[%clk 0:00:33]}  c5 {[%clk 0:01:00]} 30. Ref2 {[%clk 0:00:29]}  Kd7 {[%clk 0:01:00]} 31. g4 {[%clk 0:00:29]}  a6 {[%clk 0:00:59]} 32. a4 {[%clk 0:00:28]}  Ke8 {[%clk 0:00:59]} 33. Kg3 {[%clk 0:00:21]}  Rc8 {[%clk 0:00:58]} 34. h4 {[%clk 0:00:19]}  Rc6 {[%clk 0:00:57]} 35. Be2 {[%clk 0:00:18]}  Rb6 {[%clk 0:00:56]} 36. Rf1 {[%clk 0:00:17]}  Rb2 {[%clk 0:00:56]} 37. Rc1 {[%clk 0:00:15]}  Bd8 {[%clk 0:00:55]} 38. Bd3 {[%clk 0:00:12]}  Bc7 {[%clk 0:00:54]} 39. Kf4 {[%clk 0:00:10]}  b5 {[%clk 0:00:44]} 40. axb5 {[%clk 0:00:09]}  axb5 {[%clk 0:00:44]} 41. Ra1 {[%clk 0:00:09]}  b4 {[%clk 0:00:41]} 42. Ra8+ {[%clk 0:00:07]}  Ke7 {[%clk 0:00:40]} 43. cxb4 {[%clk 0:00:00]}  Rxb4+ {[%clk 0:00:39]} 0-1


[Site "https://www.chess.com"]

[Event "Titled Tuesday Blitz June 27 Late 2023"]
[White "Bongo Akanga Ndjila, Barthelemy"]
[Black "Shubin, Daniel"]
[WhiteFideId "10609431"]
[BlackFideId "30936470"]
[WhiteElo "2071"]
[BlackElo "2244"]
[Result "1-0"]
[Round "5"]
[TimeControl "180+2"]
[Date "2023.06.27"]
[WhiteClock "0:00:07"]
[BlackClock "0:01:26"]
[Board "162"]

1. d4 {[%clk 0:01:04]}  d5 {[%clk 0:02:55]} 2. Nf3 {[%clk 0:01:04]}  Nf6 {[%clk 0:02:52]} 3. Bg5 {[%clk 0:01:04]}  e6 {[%clk 0:02:47]} 4. e3 {[%clk 0:01:03]}  Nbd7 {[%clk 0:02:45]} 5. c3 {[%clk 0:01:03]}  Be7 {[%clk 0:02:44]} 6. Nbd2 {[%clk 0:01:03]}  O-O {[%clk 0:02:44]} 7. a4 {[%clk 0:01:03]}  c6 {[%clk 0:02:44]} 8. Bd3 {[%clk 0:01:01]}  b6 {[%clk 0:02:32]} 9. O-O {[%clk 0:00:58]}  a5 {[%clk 0:02:32]} 10. Re1 {[%clk 0:00:55]}  Ba6 {[%clk 0:02:32]} 11. Qe2 {[%clk 0:00:50]}  Bxd3 {[%clk 0:02:29]} 12. Qxd3 {[%clk 0:00:50]}  c5 {[%clk 0:02:30]} 13. e4 {[%clk 0:00:48]}  Nxe4 {[%clk 0:02:26]} 14. Bxe7 {[%clk 0:00:37]}  Qxe7 {[%clk 0:02:27]} 15. Nxe4 {[%clk 0:00:34]}  dxe4 {[%clk 0:02:28]} 16. Rxe4 {[%clk 0:00:31]}  Nf6 {[%clk 0:02:29]} 17. Rh4 {[%clk 0:00:30]}  Rfd8 {[%clk 0:02:27]} 18. Ne5 {[%clk 0:00:28]}  cxd4 {[%clk 0:02:24]} 19. cxd4 {[%clk 0:00:26]}  Qb4 {[%clk 0:02:16]} 20. Ng4 {[%clk 0:00:21]}  Nxg4 {[%clk 0:01:52]} 21. Qxh7+ {[%clk 0:00:19]}  Kf8 {[%clk 0:01:52]} 22. Rxg4 {[%clk 0:00:19]}  Qxb2 {[%clk 0:01:48]} 23. Qxg7+ {[%clk 0:00:16]}  Ke8 {[%clk 0:01:46]} 24. Qg8+ {[%clk 0:00:16]}  Ke7 {[%clk 0:01:46]} 25. Qg5+ {[%clk 0:00:16]}  Ke8 {[%clk 0:01:43]} 26. Qg8+ {[%clk 0:00:15]}  Ke7 {[%clk 0:01:42]} 27. Qg5+ {[%clk 0:00:15]}  Kd7 {[%clk 0:01:43]} 28. Rd1 {[%clk 0:00:10]}  Rac8 {[%clk 0:01:43]} 29. d5 {[%clk 0:00:09]}  e5 {[%clk 0:01:39]} 30. d6 {[%clk 0:00:08]}  Qe2 {[%clk 0:01:33]} 31. Qe7+ {[%clk 0:00:07]}  Kc6 {[%clk 0:01:31]} 32. Rc1+ {[%clk 0:00:08]}  Kd5 {[%clk 0:01:28]} 33. Qxf7+ {[%clk 0:00:07]}  Kxd6 {[%clk 0:01:26]} 34. Rg6# {[%clk 0:00:07]} 1-0


[Site "https://www.chess.com"]